fUSD/lending_fUSD_20251109
["ID","MTS","AMOUNT","RATE_DAILY","PERIOD"]
[393444796,1762663121028,-208.71278554,0.00016879,2]
[393444797,1762663125018,-182.04159775,0.00016879,2]
[393444798,1762663143981,-212.37347082,0.00016879,2]
[393444799,1762663144003,-50.84852169,0.00017,4]
[393444800,1762663248950,-200.0,0.00016599,2]
[393444801,1762663248972,-51.5575353,0.00017,4]
[393444802,1762663258635,166.66,0.00015757,2]
[393444803,1762663259024,166.66,0.00016089,2]
[393444804,1762663259061,166.66,0.0001642,2]
[393444805,1762663263951,-166.66,0.00016752,2]
[393444806,1762663263973,-36.96329649,0.00017,4]
[393444807,1762663265643,-10.63064652,0.00017,4]
[393444808,1762663265667,-145.97143136,0.00017084,2]
[393444809,1762663321923,152.43,0.0001653,2]
[393444810,1762663322774,-599.43734799,0.00016566,2]
[393444811,1762663322986,152.43,0.00024795,120]
[393444812,1762663327190,-4938.94734799,0.00016566,2]
[393444813,1762663327432,-122.11530402,0.00016566,2]
[393444827,1762663831965,-20.68856864,0.00017084,2]
[393444828,1762663831976,-300.0,0.00017088,2]
[393444829,1762663831988,-300.0,0.00017088,2]
[393444830,1762663832000,-250.0,0.00017091,2]
[393444831,1762663832015,-1000.0,0.000172,6]
[393444832,1762663832028,-1200.0,0.00017298,2]
[393444833,1762663832038,-263.0,0.00017299,2]
[393444834,1762663832048,-300.0,0.00017299,2]
[393444835,1762663832061,-2000.0,0.000173,6]
[393444836,1762663832077,-451.92,0.00017344,2]
[393444837,1762663832090,-724.43654782,0.00017365,2]
[393444838,1762663832102,-1000.0,0.00017365,2]
[393444839,1762663832113,-13745.6860825,0.00017373,2]
[393444840,1762663832125,-17988.60841718,0.00017373,2]
[393444841,1762663832141,-379.12820432,0.00017383,2]
[393444842,1762663832153,-3100.0,0.000174,6]
[393444843,1762663832165,-660.65,0.00017403,2]
[393444844,1762663832177,-166.66,0.00017416,2]
[393444845,1762663832189,-500.0,0.00017431,2]
[393444846,1762663832201,-252.75595474,0.00017431,2]
[393444847,1762663832212,-500.0,0.00017431,2]
[393444848,1762663832224,-500.0,0.00017431,2]
[393444849,1762663832235,-500.0,0.00017431,2]
[393444850,1762663832247,-500.0,0.00017431,2]
[393444851,1762663832259,-200.0,0.00017431,2]
[393444852,1762663832271,-13745.68608243,0.00017432,2]
[393444853,1762663832283,-17988.6084171,0.00017432,2]
[393444854,1762663832294,-151.0,0.00017455,2]
[393444855,1762663832305,-151.0,0.00017455,2]
[393444856,1762663832317,-151.0,0.00017455,2]
[393444857,1762663832328,-151.0,0.00017455,2]
[393444858,1762663832339,-151.0,0.00017455,2]
[393444859,1762663832351,-151.0,0.00017455,2]
[393444860,1762663832363,-151.0,0.00017455,2]
[393444861,1762663832376,-151.0,0.00017455,2]
[393444862,1762663832389,-151.0,0.00017455,2]
[393444863,1762663832401,-151.0,0.00017455,2]
[393444865,1762663832413,-151.0,0.00017455,2]
[393444867,1762663832424,-151.0,0.00017455,2]
[393444869,1762663832436,-151.0,0.00017455,2]
[393444871,1762663832447,-151.0,0.00017455,2]
[393444873,1762663832458,-151.0,0.00017455,2]
[393444876,1762663832470,-173.00943357,0.00017455,2]
[393444878,1762663832481,-500.0,0.00017464,2]
[393444880,1762663832493,-500.0,0.00017464,2]
[393444882,1762663832504,-634.70667195,0.00017464,2]
[393444885,1762663832515,-525.70011692,0.00017464,2]
[393444887,1762663832527,-500.0,0.00017464,2]
[393444889,1762663832538,-500.0,0.00017464,2]
[393444891,1762663832550,-500.0,0.00017464,2]
[393444893,1762663832561,-500.63,0.00017464,2]
[393444894,1762663832573,-500.0,0.00017464,2]
[393444895,1762663832584,-500.0,0.00017464,2]
[393444896,1762663832596,-500.0,0.00017464,2]
[393444897,1762663832607,-500.0,0.00017464,2]
[393444898,1762663832619,-500.0,0.00017464,2]
[393444899,1762663832631,-435.56368762,0.00017464,2]
[393444900,1762663832644,-500.0,0.00017464,2]
[393444901,1762663832657,-339.02500639,0.00017464,2]
[393444902,1762663832670,-207.56633044,0.00017464,2]
[393444903,1762663832682,-22635.42758042,0.00017465,2]
[393444904,1762663832696,-685.73001,0.00017465,2]
[393444905,1762663832716,-525.74328535,0.00017465,2]
[393444906,1762663832731,-1367.74106718,0.00017465,2]
[393444907,1762663832745,-578.1981307,0.00017465,2]
[393444908,1762663832760,-2354.96308394,0.00017465,2]
[393444909,1762663832790,-840.82494719,0.00017465,2]
[393444910,1762663832805,-247080.99219558,0.00017465,2]
[393444911,1762663832820,-8084.58288275,0.00017465,2]
[393444912,1762663832834,-1603.77847889,0.00017465,2]
[393444913,1762663832853,-344.81,0.00017465,2]
[393444914,1762663832869,-2531.95584394,0.00017465,2]
[393444915,1762663832896,-3402.84205144,0.00017465,2]
[393444917,1762663837946,-2698.26467723,0.00017465,2]
[393444918,1762663838050,-58136.66980546,0.00017465,2]
[393444919,1762663838064,-500.0,0.00017473,2]
[393444920,1762663838074,-503.93536918,0.00017473,2]
[393444921,1762663838084,-500.0,0.00017473,2]
[393444922,1762663838095,-500.0,0.00017473,2]
[393444923,1762663838106,-500.0,0.00017473,2]
[393444924,1762663838116,-318.28674892,0.00017473,2]
[393444925,1762663838126,-500.0,0.00017473,2]
[393444926,1762663838137,-500.0,0.00017473,2]
[393444927,1762663838149,-500.0,0.00017473,2]
[393444928,1762663838159,-500.0,0.00017473,2]
[393444929,1762663838169,-449.38309733,0.00017473,2]
[393444930,1762663838179,-500.204311,0.00017473,2]
[393444931,1762663838188,-500.41596823,0.00017473,2]
[393444932,1762663838198,-181.16320157,0.00017473,2]
[393444933,1762663838208,-500.0,0.00017473,2]
[393444934,1762663838218,-501.6436383,0.00017473,2]
[393444935,1762663838227,-167.47307844,0.00017473,2]
[393444936,1762663838237,-578.82866275,0.00017473,2]
[393444937,1762663838248,-500.0,0.00017473,2]
[393444938,1762663838257,-500.0,0.00017473,2]
[393444939,1762663838267,-500.0,0.00017473,2]
[393444940,1762663838277,-500.0,0.00017473,2]
[393444941,1762663838287,-501.18079556,0.00017473,2]
[393444942,1762663838297,-500.80443262,0.00017473,2]
[393444943,1762663838307,-500.0,0.00017473,2]
[393444944,1762663838320,-501.71610293,0.00017473,2]
[393444945,1762663838331,-13745.68608243,0.0001749,2]
[393444946,1762663838342,-17988.6084171,0.0001749,2]
[393444947,1762663838352,-250.0,0.000175,2]
[393444948,1762663838362,-250.0,0.000175,2]
[393444949,1762663838372,-250.0,0.000175,2]
[393444950,1762663838383,-250.0,0.000175,2]
[393444951,1762663838393,-250.0,0.000175,2]
[393444952,1762663838403,-250.0,0.000175,2]
[393444953,1762663838413,-250.0,0.000175,2]
[393444954,1762663838422,-250.0,0.000175,2]
[393444955,1762663838432,-250.0,0.000175,2]
[393444956,1762663838442,-250.0,0.000175,2]
[393444957,1762663838453,-250.0,0.000175,2]
[393444958,1762663838463,-250.0,0.000175,2]
[393444959,1762663838473,-250.0,0.000175,2]
[393444960,1762663838483,-250.0,0.000175,2]
[393444961,1762663838492,-250.0,0.000175,2]
[393444962,1762663838502,-250.0,0.000175,2]
[393444963,1762663838511,-250.0,0.000175,2]
[393444964,1762663838522,-250.0,0.000175,2]
[393444965,1762663838532,-250.0,0.000175,2]
[393444966,1762663838542,-250.0,0.000175,2]
[393444967,1762663838552,-250.0,0.000175,2]
[393444968,1762663838562,-250.0,0.000175,2]
[393444969,1762663838572,-250.0,0.000175,2]
[393444970,1762663838582,-250.0,0.000175,2]
[393444971,1762663838592,-250.0,0.000175,2]
[393444972,1762663838602,-250.0,0.000175,2]
[393444973,1762663838612,-250.0,0.000175,2]
[393444974,1762663838621,-281.4,0.000175,2]
[393444975,1762663838631,-4100.0,0.000175,6]
[393444976,1762663838641,-5530.33041847,0.00017515,2]
[393444977,1762663838651,-402.76,0.0001754,2]
[393444978,1762663838661,-500.0,0.00017548,2]
[393444979,1762663838671,-13745.68608243,0.00017549,2]
[393444980,1762663838681,-17988.6084171,0.00017549,2]
[393444981,1762663838692,-5200.0,0.000176,6]
[393444982,1762663838702,-13745.68608243,0.00017607,2]
[393444983,1762663838711,-17988.6084171,0.00017607,2]
[393444984,1762663838721,-13745.68608243,0.00017666,2]
[393444985,1762663838732,-17988.6084171,0.00017666,2]
[393444986,1762663838742,-500.0,0.00017673,2]
[393444987,1762663838752,-2500.0,0.0001768,3]
[393444988,1762663838762,-2500.0,0.00017689,3]
[393444989,1762663838772,-2500.0,0.00017698,3]
[393444990,1762663838782,-1000.0,0.000177,6]
[393444991,1762663838792,-2500.0,0.00017706,3]
[393444992,1762663838802,-478.20968403,0.00017706,3]
[393444993,1762663838812,-2500.0,0.00017715,3]
[393444994,1762663838822,-2500.0,0.00017724,3]
[393444995,1762663838832,-13745.68608243,0.00017724,2]
[393444996,1762663838842,-17988.6084171,0.00017724,2]
[393444997,1762663838853,-2500.0,0.00017733,3]
[393444998,1762663838863,-2500.0,0.00017742,3]
[393444999,1762663838872,-500.0,0.0001775,2]
[393445000,1762663838882,-500.0,0.0001775,2]
[393445001,1762663838892,-500.63,0.0001775,2]
[393445002,1762663838903,-500.0,0.0001775,2]
[393445003,1762663838912,-638.95883668,0.0001775,2]
[393445004,1762663838923,-2500.0,0.0001775,3]
[393445005,1762663838933,-2500.0,0.00017759,3]
[393445006,1762663838942,-360.32074579,0.00017767,2]
[393445007,1762663838952,-2500.0,0.00017768,3]
[393445008,1762663838962,-2500.0,0.00017777,3]
[393445009,1762663838972,-13745.68608243,0.00017783,2]
[393445010,1762663838982,-17988.6084171,0.00017783,2]
[393445011,1762663838992,-2500.0,0.00017786,3]
[393445012,1762663839003,-2500.0,0.00017794,3]
[393445013,1762663839012,-769.0,0.000178,2]
[393445014,1762663839022,-1658.7678861,0.000178,2]
[393445015,1762663839032,-1000.0,0.000178,6]
[393445016,1762663839041,-2500.0,0.00017803,3]
[393445017,1762663839051,-2500.0,0.00017812,3]
[393445018,1762663839063,-2500.0,0.00017821,3]
[393445019,1762663839075,-2500.0,0.0001783,3]
[393445020,1762663839085,-2500.0,0.00017838,3]
[393445021,1762663839095,-13745.68608243,0.00017841,2]
[393445022,1762663839106,-17988.6084171,0.00017841,2]
[393445023,1762663839115,-2500.0,0.00017847,3]
[393445024,1762663839125,-478.20968403,0.00017847,3]
[393445025,1762663839135,-1658.76788608,0.0001785,2]
[393445026,1762663839145,-500.0,0.00017855,2]
[393445027,1762663839157,-449.24671781,0.00017855,2]
[393445028,1762663839167,-500.0,0.00017855,2]
[393445029,1762663839177,-2500.0,0.00017856,3]
[393445030,1762663839188,-2500.0,0.00017865,3]
[393445031,1762663839199,-500.96833596,0.00017873,2]
[393445032,1762663839210,-507.04189464,0.00017873,2]
[393445033,1762663839220,-500.0,0.00017873,2]
[393445034,1762663839230,-500.0,0.00017873,2]
[393445035,1762663839240,-500.0,0.00017873,2]
[393445036,1762663839250,-500.0,0.00017873,2]
[393445037,1762663839261,-526.49985926,0.00017873,2]
[393445038,1762663839271,-2500.0,0.00017874,3]
[393445039,1762663839280,-2500.0,0.00017882,3]
[393445040,1762663839290,-2500.0,0.00017891,3]
[393445041,1762663839299,-2500.0,0.000179,3]
[393445042,1762663839309,-1331.98306636,0.000179,2]
[393445043,1762663839319,-5000.0,0.000179,2]
[393445044,1762663839328,-13745.68608243,0.000179,2]
[393445045,1762663839338,-2500.0,0.000179,3]
[393445046,1762663839347,-1000.0,0.000179,6]
[393445047,1762663839357,-17988.6084171,0.000179,2]
[393445048,1762663839367,-314.67230973,0.000179,2]
[393445049,1762663839376,-635.6551863,0.000179,2]
[393445050,1762663839386,-285.1534904,0.000179,3]
[393445051,1762663839396,-1658.76788608,0.000179,2]
[393445052,1762663839406,-2969.21513777,0.000179,2]
[393445053,1762663839416,-319.95081928,0.00017921,2]
[393445054,1762663839426,-512.94152369,0.00017921,2]
[393445055,1762663839435,-500.0,0.00017921,2]
[393445056,1762663839444,-895.32,0.00017921,2]
[393445057,1762663839454,-500.0,0.00017921,2]
[393445058,1762663839464,-500.0,0.00017921,2]
[393445059,1762663839473,-411.47396237,0.00017921,2]
[393445060,1762663839483,-500.0,0.00017921,2]
[393445061,1762663839492,-500.0,0.00017972,2]
[393445062,1762663839501,-500.0,0.00017972,2]
[393445063,1762663839512,-461.0,0.00017973,2]
[393445064,1762663839522,-329.0,0.00017973,2]
[393445065,1762663839532,-517.86787982,0.00017973,2]
[393445066,1762663839541,-500.0,0.00017973,2]
[393445067,1762663839551,-218.74086562,0.00017973,2]
[393445068,1762663839561,-502.42842853,0.00017973,2]
[393445069,1762663839571,-326.92607289,0.00017973,2]
[393445070,1762663839580,-375.37587173,0.00017973,2]
[393445071,1762663839589,-500.0,0.00017973,2]
[393445072,1762663839600,-500.0,0.00017973,2]
[393445073,1762663839610,-163.72327271,0.00017973,2]
[393445074,1762663839620,-500.0,0.00017973,2]
[393445075,1762663839630,-501.45740675,0.00017973,2]
[393445076,1762663839640,-305.03846107,0.00017973,2]
[393445077,1762663839650,-500.0,0.00017973,2]
[393445078,1762663839660,-26346.4206486,0.00017987,2]
[393445079,1762663839669,-3902.9239715,0.00017987,2]
[393445080,1762663839679,-3384.4242557,0.00017987,2]
[393445081,1762663839689,-46454.9849083,0.00017987,2]
[393445082,1762663839698,-1181.9898235,0.00017987,2]
[393445083,1762663839708,-85652.7718218,0.00017989,2]
[393445084,1762663839717,-1616.56491994,0.0001799,2]
[393445085,1762663839728,-1616.56491994,0.0001799,2]
[393445086,1762663839738,-1616.56491994,0.0001799,2]
[393445087,1762663839748,-151.0,0.00017997,2]
[393445088,1762663839758,-151.0,0.00017997,2]
[393445089,1762663839768,-332.10480629,0.00017998,2]
[393445090,1762663839778,-241.21753528,0.00017998,2]
[393445091,1762663839787,-500.63,0.00017998,2]
[393445092,1762663839798,-604.41947902,0.00017998,2]
[393445093,1762663839808,-500.0,0.00017999,2]
[393445094,1762663839817,-500.0,0.00017999,2]
[393445095,1762663839827,-542.2660844,0.00017999,2]
[393445096,1762663839837,-500.0,0.00017999,2]
[393445097,1762663839847,-500.0,0.00017999,2]
[393445098,1762663839857,-500.0,0.00017999,2]
[393445099,1762663839866,-500.0,0.00017999,2]
[393445100,1762663839875,-500.0,0.00017999,2]
[393445101,1762663839885,-500.0,0.00017999,2]
[393445102,1762663839895,-500.0,0.00017999,2]
[393445103,1762663839906,-500.0,0.00017999,2]
[393445104,1762663839915,-500.0,0.00017999,2]
[393445105,1762663839925,-500.0,0.00017999,2]
[393445106,1762663839934,-500.0,0.00017999,2]
[393445107,1762663839944,-500.0,0.00017999,2]
[393445108,1762663839953,-500.0,0.00017999,2]
[393445109,1762663839963,-525.46020506,0.00017999,2]
[393445110,1762663839972,-500.0,0.00017999,2]
[393445111,1762663839982,-500.0,0.00017999,2]
[393445112,1762663839991,-500.0,0.00017999,2]
[393445113,1762663840001,-500.0,0.00017999,2]
[393445114,1762663840011,-500.0,0.00017999,2]
[393445115,1762663840020,-500.0,0.00017999,2]
[393445116,1762663840029,-436.90186001,0.00017999,2]
[393445117,1762663840039,-500.0,0.00017999,2]
[393445118,1762663840050,-500.0,0.00017999,2]
[393445119,1762663840061,-500.0,0.00017999,2]
[393445120,1762663840073,-500.0,0.00017999,2]
[393445121,1762663840082,-500.0,0.00017999,2]
[393445122,1762663840091,-500.0,0.00017999,2]
[393445123,1762663840101,-500.0,0.00017999,2]
[393445124,1762663840112,-500.0,0.00017999,2]
[393445125,1762663840121,-500.0,0.00017999,2]
[393445126,1762663840130,-264.24979066,0.00017999,2]
[393445127,1762663840141,-500.0,0.00017999,2]
[393445128,1762663840151,-500.0,0.00017999,2]
[393445129,1762663840161,-500.0,0.00017999,2]
[393445130,1762663840171,-500.0,0.00017999,2]
[393445131,1762663840180,-500.0,0.00017999,2]
[393445132,1762663840322,-500.0,0.00017999,2]
[393445133,1762663840332,-459.59484775,0.00017999,2]
[393445134,1762663840342,-666.0,0.00017999,2]
[393445135,1762663840351,-666.0,0.00017999,2]
[393445136,1762663840360,-300.0,0.00017999,2]
[393445137,1762663840370,-666.0,0.00017999,2]
[393445138,1762663840379,-500.63,0.00017999,2]
[393445139,1762663840390,-500.63,0.00017999,2]
[393445140,1762663840399,-500.63,0.00017999,2]
[393445141,1762663840409,-500.63,0.00017999,2]
[393445142,1762663840419,-500.63,0.00017999,2]
[393445143,1762663840428,-500.63,0.00017999,2]
[393445144,1762663840437,-500.63,0.00017999,2]
[393445145,1762663840447,-500.63,0.00017999,2]
[393445146,1762663840456,-500.63,0.00017999,2]
[393445147,1762663840465,-500.63,0.00017999,2]
[393445148,1762663840475,-500.63,0.00017999,2]
[393445149,1762663840483,-500.63,0.00017999,2]
[393445150,1762663840493,-500.63,0.00017999,2]
[393445151,1762663840502,-500.63,0.00017999,2]
[393445152,1762663840511,-500.63,0.00017999,2]
[393445153,1762663840520,-500.63,0.00017999,2]
[393445154,1762663840530,-500.63,0.00017999,2]
[393445155,1762663840539,-500.63,0.00017999,2]
[393445156,1762663840548,-500.63,0.00017999,2]
[393445157,1762663840558,-500.63,0.00017999,2]
[393445158,1762663840567,-500.69918236,0.00017999,2]
[393445159,1762663840576,-671.15214123,0.00017999,2]
[393445160,1762663840585,-500.0,0.00017999,2]
[393445161,1762663840595,-187.23214529,0.00017999,2]
[393445162,1762663840604,-2931312.20457252,0.00018,2]
[393445163,1762663840724,-591.99184791,0.00017365,2]
[393445164,1762663840739,-1908.00815209,0.00017365,2]
[393445165,1762663840749,-2838.16502474,0.00018,2]
[393445166,1762663840771,-3134.67326246,0.00018,2]
[393445167,1762663840782,-5418107.25581803,0.00018,2]
[393445173,1762663844268,-547.77273188,0.00018,2]
[393445174,1762663844324,-442.3191871,0.00018,2]
[393445175,1762663844335,-327.01150971,0.00018,2]
[393445178,1762663846522,-44008.26139612,0.00018,2]
[393445186,1762663847878,500.0,0.00039204,120]
[393445187,1762663848118,500.0,0.00039204,120]
[393445188,1762663848362,500.0,0.00039204,120]
[393445189,1762663848602,213.73127373,0.00039204,120]
[393445211,1762664142705,911.61,0.00013699,2]
[393445212,1762664239078,-875.45995224,0.00016787,2]
[393445213,1762664243413,-124.54004776,0.00016787,2]
[393445214,1762664243440,-132.45664232,0.00016893,2]
[393445215,1762664247101,-62.54335768,0.00016893,2]
[393445216,1762664247124,-250.0,0.00017,2]
[393445217,1762664247145,-286.89399031,0.00017,2]
[393445218,1762664299869,-213.10600969,0.00017,2]
[393445219,1762664299892,-146.80361941,0.00017031,2]
[393445220,1762664301686,-153.19638059,0.00017031,2]
[393445221,1762664301707,-41.80361941,0.00017031,2]
[393445222,1762664304373,-271.26665583,0.00017031,2]
[393445223,1762664306810,-172.37660578,0.00017031,2]
[393445224,1762664309063,-183.00963422,0.00017031,2]
[393445225,1762664312037,-166.66,0.00017031,2]
[393445226,1762664314209,-158.80163917,0.00017031,2]
[393445227,1762664315850,-277.3067341,0.00017031,2]
[393445228,1762664318704,-208.09145227,0.00017031,2]
[393445229,1762664322819,-156.52690454,0.00017031,2]
[393445230,1762664324833,200.0,0.00014937,2]
[393445231,1762664325823,-403.01871217,0.00017031,2]
[393445232,1762664344600,-171.07018412,0.00016932,2]
[393445233,1762664344623,-28.06035162,0.00017031,2]
[393445234,1762664347291,-300.86946426,0.00017031,2]
[393445236,1762664350383,-132.20822663,0.00017031,2]
[393445237,1762664350408,-67.79177337,0.00017031,2]
[393445238,1762664439536,-3935.41,0.00016659,2]
[393445239,1762664505027,303.5,0.00016597,2]
[393445240,1762664553752,1825.69,0.00016438,2]
[393445241,1762664553775,791.01,0.00016438,2]
[393445242,1762664579158,-4075.16,0.00016662,2]
[393445243,1762664593911,-188.1292432,0.00016662,2]
[393445244,1762664594590,-195.0,0.00016847,2]
[393445245,1762664637729,345.4549103,0.00039162,120]
[393445252,1762664913948,-164.67118779,0.00016931,2]
[393445253,1762664924319,197.12,0.00016538,2]
[393445262,1762665032233,-17.83729826,0.00016931,2]
[393445263,1762665032247,-195.0,0.00016981,2]
[393445264,1762665032257,-302.0,0.00017031,2]
[393445265,1762665032268,-250.0,0.00017031,2]
[393445266,1762665032278,-849.75899556,0.00017045,2]
[393445267,1762665032288,-1200.0,0.00017134,2]
[393445268,1762665032298,-1200.0,0.00017135,2]
[393445269,1762665032307,-849.75899556,0.00017136,2]
[393445270,1762665032317,-300.0,0.00017144,2]
[393445271,1762665032327,-300.0,0.00017144,2]
[393445272,1762665032336,-166.7,0.00017175,2]
[393445273,1762665032346,-182.50848605,0.00017236,2]
[393445274,1762665032355,-364.2818,0.00017236,2]
[393445275,1762665032365,-12326.8125,0.00017236,2]
[393445276,1762665032374,-550.0,0.00017272,2]
[393445277,1762665032384,-500.61796112,0.00017273,2]
[393445278,1762665032394,-500.0,0.00017273,2]
[393445279,1762665032405,-500.0,0.00017273,2]
[393445280,1762665032415,-500.41596823,0.00017273,2]
[393445281,1762665032426,-500.0,0.00017273,2]
[393445282,1762665032439,-500.204311,0.00017273,2]
[393445283,1762665032449,-500.0,0.00017273,2]
[393445284,1762665032462,-500.0,0.00017273,2]
[393445285,1762665032472,-500.0,0.00017273,2]
[393445286,1762665032482,-500.0,0.00017273,2]
[393445287,1762665032492,-225.74708232,0.00017273,2]
[393445288,1762665032503,-500.0,0.00017273,2]
[393445289,1762665032512,-500.0,0.00017273,2]
[393445290,1762665032522,-500.0,0.00017273,2]
[393445291,1762665032534,-500.0,0.00017273,2]
[393445292,1762665032545,-181.16320157,0.00017273,2]
[393445293,1762665032555,-500.0,0.00017273,2]
[393445294,1762665032566,-500.0,0.00017273,2]
[393445295,1762665032575,-168.18751796,0.00017273,2]
[393445296,1762665032588,-331.81248204,0.00017273,2]
[393445297,1762665032598,-487.97038397,0.00017273,2]
[393445298,1762665032620,-90.85827878,0.00017273,2]
[393445299,1762665032630,-501.6436383,0.00017273,2]
[393445301,1762665032641,-504.48969682,0.00017273,2]
[393445304,1762665032655,-500.0,0.00017273,2]
[393445306,1762665032664,-454.54519141,0.00017273,2]
[393445308,1762665032674,-167.47307844,0.00017273,2]
[393445310,1762665032688,-500.0,0.00017273,2]
[393445312,1762665032698,-94.37265659,0.00017273,2]
[393445314,1762665032709,-409.8386897,0.00017273,2]
[393445316,1762665032719,-30.8313103,0.00017273,2]
[393445318,1762665032731,-470.88479263,0.00017273,2]
[393445319,1762665032741,-500.0,0.00017273,2]
[393445320,1762665032750,-500.0,0.00017273,2]
[393445321,1762665032760,-500.0,0.00017273,2]
[393445322,1762665032771,-1359.62,0.00017273,2]
[393445323,1762665032781,-151.0,0.0001729,2]
[393445324,1762665032791,-151.0,0.0001729,2]
[393445325,1762665032801,-151.0,0.0001729,2]
[393445326,1762665032811,-151.0,0.0001729,2]
[393445327,1762665032820,-151.0,0.0001729,2]
[393445328,1762665032831,-151.0,0.0001729,2]
[393445329,1762665032844,-151.0,0.0001729,2]
[393445330,1762665032854,-151.0,0.0001729,2]
[393445331,1762665032864,-151.0,0.0001729,2]
[393445332,1762665032873,-151.0,0.0001729,2]
[393445333,1762665032883,-151.0,0.0001729,2]
[393445334,1762665032893,-151.0,0.0001729,2]
[393445335,1762665032903,-151.0,0.0001729,2]
[393445336,1762665032912,-151.0,0.0001729,2]
[393445337,1762665032922,-151.0,0.0001729,2]
[393445338,1762665032932,-151.0,0.0001729,2]
[393445339,1762665032941,-151.0,0.0001729,2]
[393445340,1762665032951,-151.0,0.0001729,2]
[393445341,1762665032962,-151.0,0.0001729,2]
[393445342,1762665032973,-151.0,0.0001729,2]
[393445343,1762665032983,-1000.0,0.00017298,2]
[393445344,1762665032993,-224.92884361,0.00017299,2]
[393445345,1762665033209,-495.00000017,0.00017299,2]
[393445346,1762665033219,-500.0,0.00017299,2]
[393445347,1762665033231,-500.0,0.00017299,2]
[393445348,1762665033241,-500.0,0.00017299,2]
[393445349,1762665033251,-500.0,0.00017299,2]
[393445350,1762665033260,-500.0,0.00017299,2]
[393445351,1762665033270,-500.0,0.00017299,2]
[393445352,1762665033280,-306.25878318,0.00017299,2]
[393445353,1762665033289,-500.0,0.00017299,2]
[393445354,1762665033299,-500.0,0.00017299,2]
[393445355,1762665033309,-500.0,0.00017299,2]
[393445356,1762665033319,-520.47304342,0.00017299,2]
[393445357,1762665033330,-520.47304342,0.00017299,2]
[393445358,1762665033339,-520.47304342,0.00017299,2]
[393445359,1762665033349,-520.47304342,0.00017299,2]
[393445360,1762665033359,-520.47304342,0.00017299,2]
[393445361,1762665033369,-520.47304342,0.00017299,2]
[393445362,1762665033379,-520.47304342,0.00017299,2]
[393445363,1762665033388,-520.47304342,0.00017299,2]
[393445364,1762665033397,-520.47304342,0.00017299,2]
[393445365,1762665033406,-520.47304342,0.00017299,2]
[393445366,1762665033414,-520.47304342,0.00017299,2]
[393445367,1762665033423,-520.47304342,0.00017299,2]
[393445368,1762665033433,-520.47304342,0.00017299,2]
[393445369,1762665033442,-520.47304342,0.00017299,2]
[393445370,1762665033452,-520.47304342,0.00017299,2]
[393445371,1762665033466,-520.47304342,0.00017299,2]
[393445372,1762665033476,-150.0,0.00017299,2]
[393445373,1762665033487,-153.62806036,0.00017299,2]
[393445374,1762665033496,-150.0,0.00017299,2]
[393445375,1762665033507,-500.0,0.00017299,2]
[393445376,1762665033517,-520.47304342,0.00017299,2]
[393445377,1762665033527,-520.47304342,0.00017299,2]
[393445378,1762665033538,-520.47304342,0.00017299,2]
[393445379,1762665033548,-520.47304342,0.00017299,2]
[393445380,1762665033558,-69688.1478,0.000173,2]
[393445381,1762665033577,-1160.57170075,0.00017337,2]
[393445382,1762665033588,-1000.0,0.00017365,2]
[393445383,1762665033598,-150.0,0.00017436,2]
[393445384,1762665033608,-500.0,0.00017436,2]
[393445385,1762665033618,-500.0,0.00017464,2]